fUST/lending_fUST_20260507
["ID","MTS","AMOUNT","RATE_DAILY","PERIOD"]
[421782483,1778149847000,-1037.93,0.00011232,2]
[421782487,1778149847000,-500.0,0.00011232,2]
[421782529,1778149848000,-324.98,0.00011506,2]
[421782530,1778149848000,-1608.5448515,0.00011506,2]
[421782527,1778149848000,-500.0,0.00011506,2]
[421782528,1778149848000,-500.0,0.00011506,2]
[421782534,1778149848000,-500.0,0.00011506,2]
[421782531,1778149848000,-368.2451485,0.00011506,2]
[421782533,1778149848000,-500.0,0.00011506,2]
[421782535,1778149848000,-500.0,0.00011506,2]
[421782536,1778149848000,-4425.25322424,0.00011506,2]
[421782532,1778149848000,-398.97,0.00011506,2]
[421782688,1778150416000,167.273053,4.683e-05,2]
[421782696,1778150842000,206.9446303,8.048e-05,2]
[421782697,1778150955000,1413.1588162,7.958e-05,2]
[421782698,1778150969000,724.61929876,0.00010934,60]
[421782716,1778151032000,-5000.0,8.302e-05,2]
[421782721,1778151032000,-3923.2138031,8.471e-05,2]
[421782718,1778151032000,-173.79292292,8.386e-05,2]
[421782735,1778151033000,-809.83634132,8.471e-05,2]
[421782806,1778151038000,-10235.58178745,9.176e-05,2]
[421782820,1778151038000,-300.0,9.176e-05,2]
[421782818,1778151038000,-300.0,9.176e-05,2]
[421782816,1778151038000,-300.0,9.176e-05,2]
[421782811,1778151038000,-300.0,9.176e-05,2]
[421782813,1778151038000,-300.0,9.176e-05,2]
[421782809,1778151038000,-4057.52191127,9.176e-05,2]
[421782823,1778151038000,-300.0,9.176e-05,2]
[421782790,1778151038000,-300.0,8.599e-05,2]
[421782798,1778151038000,-21452.05982291,9.176e-05,2]
[421782786,1778151038000,-300.0,8.599e-05,2]
[421782794,1778151038000,-385.51197085,8.6e-05,2]
[421782796,1778151038000,-10000.0,9.123e-05,2]
[421782788,1778151038000,-300.0,8.599e-05,2]
[421782792,1778151038000,-300.0,8.599e-05,2]
[421782784,1778151038000,-1200.0,8.556e-05,2]
[421782782,1778151038000,-266.94985558,8.471e-05,2]
[421782804,1778151038000,-1751.73676825,9.176e-05,2]
[421782825,1778151038000,-300.0,9.176e-05,2]
[421782846,1778151038000,-1680.0,9.412e-05,2]
[421782842,1778151038000,-229.83432848,9.2e-05,2]
[421782828,1778151038000,-300.0,9.176e-05,2]
[421782866,1778151038000,-500.0,0.00010582,2]
[421782864,1778151038000,-500.0,0.00010582,2]
[421782858,1778151038000,-587.0,0.00010405,2]
[421782860,1778151038000,-500.0,0.00010582,2]
[421782856,1778151038000,-600.0,0.00010362,2]
[421782854,1778151038000,-2351.0,0.00010353,2]
[421782852,1778151038000,-300.0,9.459e-05,2]
[421782850,1778151038000,-420.0,9.459e-05,2]
[421782862,1778151038000,-357.78020496,0.00010582,2]
[421782835,1778151038000,-300.0,9.176e-05,2]
[421782832,1778151038000,-300.0,9.176e-05,2]
[421782837,1778151038000,-300.0,9.176e-05,2]
[421782844,1778151038000,-167.273053,9.367e-05,2]
[421782830,1778151038000,-300.0,9.176e-05,2]
[421782834,1778151038000,-300.0,9.176e-05,2]
[421782840,1778151038000,-300.0,9.176e-05,2]
[421782848,1778151038000,-331.0,9.459e-05,2]
[421782839,1778151038000,-300.0,9.176e-05,2]
[421782921,1778151039000,-557.5788265,0.00010812,2]
[421782920,1778151039000,-537.6845,0.00010757,2]
[421782917,1778151039000,-151.5,0.00010684,2]
[421782922,1778151039000,-315.52653334,0.00010858,2]
[421782916,1778151039000,-151.5,0.00010684,2]
[421782911,1778151039000,-500.0,0.00010582,2]
[421782914,1778151039000,-153.64631427,0.00010678,2]
[421782909,1778151039000,-500.0,0.00010582,2]
[421782913,1778151039000,-454.9041256,0.000106,2]
[421782910,1778151039000,-500.0,0.00010582,2]
[421782923,1778151039000,-578.20924308,0.00010867,2]
[421782915,1778151039000,-151.5,0.00010684,2]
[421782925,1778151039000,-310.55112804,0.00010934,14]
[421782935,1778151039000,-500.0,0.00010957,2]
[421782919,1778151039000,-192.75419295,0.00010684,2]
[421782918,1778151039000,-151.5,0.00010684,2]
[421782926,1778151039000,-162.380719,0.00010951,2]
[421782927,1778151039000,-151.0,0.00010951,2]
[421782928,1778151039000,-445.202766,0.00010951,2]
[421782931,1778151039000,-11931.0,0.00010956,2]
[421782930,1778151039000,-151.0,0.00010951,2]
[421782912,1778151039000,-42813.76508134,0.00010583,2]
[421782932,1778151039000,-151.0,0.00010957,2]
[421782929,1778151039000,-537.6845,0.00010951,2]
[421782939,1778151039000,-500.0,0.00010957,2]
[421782933,1778151039000,-500.0,0.00010957,2]
[421782938,1778151039000,-500.0,0.00010957,2]
[421782924,1778151039000,-599.60298507,0.00010922,2]
[421782908,1778151039000,-324.31958658,0.00010582,2]
[421782899,1778151039000,-500.0,0.00010582,2]
[421782904,1778151039000,-500.0,0.00010582,2]
[421782870,1778151039000,-500.0,0.00010582,2]
[421782874,1778151039000,-500.0,0.00010582,2]
[421782868,1778151039000,-500.0,0.00010582,2]
[421782872,1778151039000,-483.27106793,0.00010582,2]
[421782876,1778151039000,-500.0,0.00010582,2]
[421782878,1778151039000,-500.0,0.00010582,2]
[421782884,1778151039000,-500.0,0.00010582,2]
[421782882,1778151039000,-500.0,0.00010582,2]
[421782886,1778151039000,-500.0,0.00010582,2]
[421782890,1778151039000,-500.0,0.00010582,2]
[421782888,1778151039000,-500.0,0.00010582,2]
[421782880,1778151039000,-500.0,0.00010582,2]
[421782889,1778151039000,-500.0,0.00010582,2]
[421782907,1778151039000,-500.0,0.00010582,2]
[421782892,1778151039000,-500.0,0.00010582,2]
[421782894,1778151039000,-500.0,0.00010582,2]
[421782897,1778151039000,-500.0,0.00010582,2]
[421782893,1778151039000,-500.0,0.00010582,2]
[421782902,1778151039000,-500.0,0.00010582,2]
[421782901,1778151039000,-500.0,0.00010582,2]
[421782895,1778151039000,-500.0,0.00010582,2]
[421782898,1778151039000,-500.0,0.00010582,2]
[421782934,1778151039000,-280.18480343,0.00010957,2]
[421782896,1778151039000,-500.0,0.00010582,2]
[421782900,1778151039000,-500.0,0.00010582,2]
[421782903,1778151039000,-500.0,0.00010582,2]
[421782905,1778151039000,-500.0,0.00010582,2]
[421782906,1778151039000,-389.31682367,0.00010582,2]
[421782891,1778151039000,-500.0,0.00010582,2]
[421782937,1778151039000,-500.0,0.00010957,2]
[421782973,1778151039000,-616.86,0.00010958,2]
[421782940,1778151039000,-500.0,0.00010957,2]
[421782972,1778151039000,-504.41,0.00010958,2]
[421782970,1778151039000,-509.59,0.00010958,2]
[421782975,1778151039000,-500.0,0.00010958,2]
[421782977,1778151039000,-500.0,0.00010958,2]
[421782974,1778151039000,-500.0,0.00010958,2]
[421782979,1778151039000,-500.0,0.00010958,2]
[421782980,1778151039000,-500.0,0.00010958,2]
[421782984,1778151039000,-500.0,0.00010958,2]
[421782981,1778151039000,-500.0,0.00010958,2]
[421782983,1778151039000,-500.0,0.00010958,2]
[421782985,1778151039000,-500.0,0.00010958,2]
[421782989,1778151039000,-595.47,0.00010958,2]
[421782992,1778151039000,-500.0,0.00010958,2]
[421782991,1778151039000,-500.0,0.00010958,2]
[421782986,1778151039000,-500.0,0.00010958,2]
[421782987,1778151039000,-500.0,0.00010958,2]
[421782982,1778151039000,-500.0,0.00010958,2]
[421782988,1778151039000,-500.0,0.00010958,2]
[421782990,1778151039000,-500.0,0.00010958,2]
[421782994,1778151039000,-500.0,0.00010958,2]
[421782993,1778151039000,-500.0,0.00010958,2]
[421782996,1778151039000,-500.0,0.00010958,2]
[421782997,1778151039000,-500.0,0.00010958,2]
[421782998,1778151039000,-501.16050215,0.00010958,2]
[421782999,1778151039000,-500.0,0.00010958,2]
[421783000,1778151039000,-500.0,0.00010958,2]
[421782936,1778151039000,-500.0,0.00010957,2]
[421782976,1778151039000,-553.76,0.00010958,2]
[421782971,1778151039000,-546.92,0.00010958,2]
[421782995,1778151039000,-500.0,0.00010958,2]
[421782969,1778151039000,-500.0,0.00010958,2]
[421782967,1778151039000,-500.0,0.00010958,2]
[421782941,1778151039000,-500.0,0.00010957,2]
[421782945,1778151039000,-500.0,0.00010957,2]
[421782949,1778151039000,-500.0,0.00010957,2]
[421782950,1778151039000,-500.0,0.00010957,2]
[421782943,1778151039000,-638.87714659,0.00010957,2]
[421782947,1778151039000,-500.0,0.00010957,2]
[421782951,1778151039000,-500.0,0.00010957,2]
[421782948,1778151039000,-500.0,0.00010957,2]
[421782944,1778151039000,-500.0,0.00010957,2]
[421782942,1778151039000,-500.0,0.00010957,2]
[421782952,1778151039000,-500.0,0.00010957,2]
[421782953,1778151039000,-250.0,0.00010957,2]
[421782955,1778151039000,-501.6064869,0.00010958,2]
[421782946,1778151039000,-500.0,0.00010957,2]
[421782957,1778151039000,-500.0,0.00010958,2]
[421782954,1778151039000,-500.0,0.00010957,2]
[421782968,1778151039000,-500.0,0.00010958,2]
[421782963,1778151039000,-500.0,0.00010958,2]
[421782962,1778151039000,-500.0,0.00010958,2]
[421782964,1778151039000,-500.0,0.00010958,2]
[421782966,1778151039000,-500.0,0.00010958,2]
[421782959,1778151039000,-500.0,0.00010958,2]
[421782956,1778151039000,-586.72812311,0.00010958,2]
[421782961,1778151039000,-500.0,0.00010958,2]
[421782958,1778151039000,-1303.0132,0.00010958,2]
[421782978,1778151039000,-510.21,0.00010958,2]
[421782960,1778151039000,-500.0,0.00010958,2]
[421782965,1778151039000,-500.0,0.00010958,2]
[421783037,1778151040000,-294.18444539,0.00010958,2]
[421783029,1778151040000,-500.0,0.00010958,2]
[421783031,1778151040000,-500.0,0.00010958,2]
[421783033,1778151040000,-608.38,0.00010958,2]
[421783032,1778151040000,-500.0,0.00010958,2]
[421783028,1778151040000,-335.0763653,0.00010958,2]
[421783034,1778151040000,-500.0,0.00010958,2]
[421783038,1778151040000,-500.0,0.00010958,2]
[421783036,1778151040000,-500.0,0.00010958,2]
[421783035,1778151040000,-500.0,0.00010958,2]
[421783030,1778151040000,-516.83,0.00010958,2]
[421783048,1778151040000,-500.0,0.00010958,2]
[421783040,1778151040000,-500.0,0.00010958,2]
[421783041,1778151040000,-500.0,0.00010958,2]
[421783042,1778151040000,-594.27,0.00010958,2]
[421783043,1778151040000,-561.43,0.00010958,2]
[421783049,1778151040000,-500.0,0.00010958,2]
[421783047,1778151040000,-500.0,0.00010958,2]
[421783046,1778151040000,-500.0,0.00010958,2]
[421783044,1778151040000,-506.14,0.00010958,2]
[421783027,1778151040000,-164.9236347,0.00010958,2]
[421783045,1778151040000,-500.0,0.00010958,2]
[421783039,1778151040000,-500.0,0.00010958,2]
[421783026,1778151040000,-500.0,0.00010958,2]
[421783019,1778151040000,-500.0,0.00010958,2]
[421783024,1778151040000,-500.0,0.00010958,2]
[421783050,1778151040000,-500.0,0.00010958,2]
[421783006,1778151040000,-500.0,0.00010958,2]
[421783004,1778151040000,-500.0,0.00010958,2]
[421783005,1778151040000,-500.0,0.00010958,2]
[421783003,1778151040000,-500.0,0.00010958,2]
[421783001,1778151040000,-500.0,0.00010958,2]
[421783002,1778151040000,-592.35,0.00010958,2]
[421783007,1778151040000,-500.0,0.00010958,2]
[421783009,1778151040000,-500.0,0.00010958,2]
[421783020,1778151040000,-500.0,0.00010958,2]
[421783008,1778151040000,-500.0,0.00010958,2]
[421783011,1778151040000,-595.95,0.00010958,2]
[421783010,1778151040000,-500.0,0.00010958,2]
[421783012,1778151040000,-500.0,0.00010958,2]
[421783013,1778151040000,-500.0,0.00010958,2]
[421783014,1778151040000,-621.36,0.00010958,2]
[421783016,1778151040000,-500.0,0.00010958,2]
[421783018,1778151040000,-500.0,0.00010958,2]
[421783017,1778151040000,-500.0,0.00010958,2]
[421783015,1778151040000,-500.0,0.00010958,2]
[421783021,1778151040000,-500.0,0.00010958,2]
[421783023,1778151040000,-500.0,0.00010958,2]
[421783022,1778151040000,-500.0,0.00010958,2]
[421783025,1778151040000,-500.0,0.00010958,2]
[421783052,1778151040000,-500.0,0.00010958,2]
[421783055,1778151040000,-500.0,0.00010958,2]
[421783053,1778151040000,-556.65,0.00010958,2]
[421783080,1778151040000,-463.36027796,0.00010958,2]
[421783082,1778151040000,-500.0,0.00010958,2]
[421783083,1778151040000,-556.9,0.00010958,2]
[421783087,1778151040000,-500.0,0.00010958,2]
[421783085,1778151040000,-500.0,0.00010958,2]
[421783088,1778151040000,-500.0,0.00010958,2]
[421783084,1778151040000,-500.0,0.00010958,2]
[421783086,1778151040000,-500.0,0.00010958,2]
[421783089,1778151040000,-500.0,0.00010958,2]
[421783090,1778151040000,-500.0,0.00010958,2]
[421783091,1778151040000,-500.0,0.00010958,2]
[421783094,1778151040000,-500.0,0.00010958,2]
[421783095,1778151040000,-500.0,0.00010958,2]
[421783096,1778151040000,-500.0,0.00010958,2]
[421783092,1778151040000,-552.35778499,0.00010958,2]
[421783098,1778151040000,-500.0,0.00010958,2]
[421783097,1778151040000,-500.0,0.00010958,2]
[421783099,1778151040000,-500.0,0.00010958,2]
[421783100,1778151040000,-500.0,0.00010958,2]
[421783103,1778151040000,-500.0,0.00010958,2]
[421783101,1778151040000,-500.0,0.00010958,2]
[421783051,1778151040000,-500.0,0.00010958,2]
[421783102,1778151040000,-500.0,0.00010958,2]
[421783081,1778151040000,-253.14972204,0.00010958,2]
[421783077,1778151040000,-500.0,0.00010958,2]
[421783093,1778151040000,-500.0,0.00010958,2]
[421783076,1778151040000,-500.0,0.00010958,2]
[421783054,1778151040000,-543.40952576,0.00010958,2]
[421783078,1778151040000,-500.0,0.00010958,2]
[421783056,1778151040000,-500.0,0.00010958,2]
[421783058,1778151040000,-500.0,0.00010958,2]
[421783057,1778151040000,-500.0,0.00010958,2]
[421783059,1778151040000,-500.0,0.00010958,2]
[421783060,1778151040000,-500.0,0.00010958,2]
[421783062,1778151040000,-500.0,0.00010958,2]
[421783063,1778151040000,-500.0,0.00010958,2]
[421783064,1778151040000,-218.05,0.00010958,2]
[421783065,1778151040000,-500.0,0.00010958,2]
[421783061,1778151040000,-500.0,0.00010958,2]
[421783067,1778151040000,-500.0,0.00010958,2]
[421783068,1778151040000,-500.0,0.00010958,2]
[421783069,1778151040000,-500.0,0.00010958,2]
[421783070,1778151040000,-500.0,0.00010958,2]
[421783071,1778151040000,-500.0,0.00010958,2]
[421783073,1778151040000,-500.0,0.00010958,2]
[421783074,1778151040000,-500.0,0.00010958,2]
[421783075,1778151040000,-500.0,0.00010958,2]
[421783066,1778151040000,-500.0,0.00010958,2]
[421783072,1778151040000,-500.0,0.00010958,2]
[421783079,1778151040000,-500.0,0.00010958,2]
[421783142,1778151041000,-500.0,0.00010958,2]
[421783140,1778151041000,-590.31,0.00010958,2]
[421783136,1778151041000,-500.0,0.00010958,2]
[421783137,1778151041000,-500.0,0.00010958,2]
[421783144,1778151041000,-940.81,0.00010958,2]
[421783141,1778151041000,-500.0,0.00010958,2]
[421783139,1778151041000,-951.43,0.00010958,2]
[421783134,1778151041000,-533.5,0.00010958,2]
[421783135,1778151041000,-184.05262832,0.00010958,2]
[421783133,1778151041000,-500.0,0.00010958,2]
[421783138,1778151041000,-500.0,0.00010958,2]
[421783154,1778151041000,-500.0,0.00010958,2]
[421783148,1778151041000,-500.0,0.00010958,2]
[421783146,1778151041000,-500.0,0.00010958,2]
[421783147,1778151041000,-500.0,0.00010958,2]
[421783149,1778151041000,-500.0,0.00010958,2]
[421783157,1778151041000,-314.69,0.00010958,2]
[421783156,1778151041000,-500.0,0.00010958,2]
[421783151,1778151041000,-500.0,0.00010958,2]
[421783150,1778151041000,-500.0,0.00010958,2]
[421783152,1778151041000,-554.84,0.00010958,2]
[421783155,1778151041000,-311.80273523,0.00010958,2]
[421783153,1778151041000,-500.0,0.00010958,2]
[421783132,1778151041000,-500.0,0.00010958,2]
[421783145,1778151041000,-500.0,0.00010958,2]
[421783143,1778151041000,-500.0,0.00010958,2]
[421783105,1778151041000,-500.0,0.00010958,2]
[421783131,1778151041000,-500.0,0.00010958,2]
[421783159,1778151041000,-500.0,0.00010958,2]
[421783104,1778151041000,-1729.69,0.00010958,2]
[421783107,1778151041000,-500.0,0.00010958,2]
[421783106,1778151041000,-424.17397357,0.00010958,2]
[421783108,1778151041000,-500.0,0.00010958,2]
[421783109,1778151041000,-500.0,0.00010958,2]
[421783113,1778151041000,-500.0,0.00010958,2]
[421783111,1778151041000,-500.0,0.00010958,2]
[421783110,1778151041000,-500.0,0.00010958,2]
[421783112,1778151041000,-500.0,0.00010958,2]
[421783114,1778151041000,-9383.32,0.00010958,2]
[421783130,1778151041000,-500.0,0.00010958,2]
[421783117,1778151041000,-500.0,0.00010958,2]
[421783118,1778151041000,-500.0,0.00010958,2]
[421783119,1778151041000,-4337.62,0.00010958,2]
[421783124,1778151041000,-604.89,0.00010958,2]
[421783121,1778151041000,-500.0,0.00010958,2]
[421783123,1778151041000,-500.0,0.00010958,2]
[421783125,1778151041000,-500.0,0.00010958,2]
[421783129,1778151041000,-500.0,0.00010958,2]
[421783127,1778151041000,-500.0,0.00010958,2]
[421783120,1778151041000,-500.0,0.00010958,2]
[421783126,1778151041000,-500.0,0.00010958,2]
[421783128,1778151041000,-500.0,0.00010958,2]
[421783116,1778151041000,-500.0,0.00010958,2]
[421783170,1778151041000,-151.0,0.00011,2]
[421783122,1778151041000,-560.0,0.00010958,2]
[421783163,1778151041000,-500.0,0.00010958,2]
[421783192,1778151041000,-389.80334202,0.00011232,2]
[421783202,1778151041000,-500.0,0.00011232,2]
[421783194,1778151041000,-313.08,0.00011232,2]
[421783191,1778151041000,-110.19665798,0.00011232,2]
[421783193,1778151041000,-161.14,0.00011232,2]
[421783195,1778151041000,-337.68502246,0.00011232,2]
[421783197,1778151041000,-500.0,0.00011232,2]
[421783196,1778151041000,-162.31497754,0.00011232,2]
[421783201,1778151041000,-500.0,0.00011232,2]
[421783198,1778151041000,-500.0,0.00011232,2]
[421783199,1778151041000,-34.78864982,0.00011232,2]
[421783203,1778151041000,-527.9,0.00011232,2]
[421783206,1778151041000,-500.0,0.00011232,2]
[421783205,1778151041000,-527.56,0.00011232,2]
[421783204,1778151041000,-335.81,0.00011232,2]
[421783207,1778151041000,-500.0,0.00011232,2]
[421783209,1778151041000,-282.67,0.00011232,2]
[421783214,1778151041000,-234.41,0.00011232,2]
[421783208,1778151041000,-594.27,0.00011232,2]
[421783210,1778151041000,-500.0,0.00011232,2]
[421783211,1778151041000,-171.91,0.00011232,2]
[421783212,1778151041000,-500.0,0.00011232,2]
[421783213,1778151041000,-500.0,0.00011232,2]
[421783215,1778151041000,-78.75974682,0.00011232,2]
[421783169,1778151041000,-621.78829552,0.00010977,2]
[421783190,1778151041000,-191.42,0.00011232,2]
[421783188,1778151041000,-500.0,0.00010958,2]
[421783200,1778151041000,-465.21135018,0.00011232,2]
[421783187,1778151041000,-348.81032271,0.00011232,2]
[421783165,1778151041000,-500.0,0.00010958,2]
[421783161,1778151041000,-595.41,0.00010958,2]
[421783166,1778151041000,-500.0,0.00010958,2]
[421783189,1778151041000,-11.61967729,0.00011232,2]
[421783160,1778151041000,-292.05722724,0.00010958,2]
[421783158,1778151041000,-500.0,0.00010958,2]
[421783168,1778151041000,-500.0,0.00010958,2]
[421783162,1778151041000,-545.72,0.00010958,2]
[421783167,1778151041000,-500.0,0.00010958,2]
[421783171,1778151041000,-174.15,0.00011,2]
[421783174,1778151041000,-315.52653332,0.00011132,2]
[421783176,1778151041000,-151.0,0.000112,2]
[421783175,1778151041000,-165.14020212,0.00011142,2]
[421783164,1778151041000,-632.12,0.00010958,2]
[421783177,1778151041000,-23869.9133905,0.00011227,2]
[421783173,1778151041000,-668.65185757,0.00011087,2]
[421783185,1778151041000,-288.28,0.00011232,2]
[421783184,1778151041000,-420.06,0.00011232,2]
[421783183,1778151041000,-500.0,0.00011232,2]
[421783182,1778151041000,-466.56,0.00011232,2]
[421783186,1778151041000,-500.0,0.00011232,2]
[421783179,1778151041000,-1303.0132,0.00011232,2]
[421783180,1778151041000,-229.45,0.00011232,2]
[421783172,1778151041000,-644.79446246,0.00011032,2]
[421783178,1778151041000,-1818.2872991,0.00011227,2]
[421783181,1778151041000,-500.0,0.00011232,2]
[421783238,1778151044000,-500.0,0.00011232,2]
[421783224,1778151044000,-716.51,0.00011232,2]
[421783240,1778151044000,-500.0,0.00011232,2]
[421783235,1778151044000,-270.8,0.00011232,2]
[421783237,1778151044000,-500.0,0.00011232,2]
[421783234,1778151044000,-352.94,0.00011232,2]
[421783232,1778151044000,-500.0,0.00011232,2]
[421783233,1778151044000,-500.0,0.00011232,2]
[421783230,1778151044000,-500.0,0.00011232,2]
[421783223,1778151044000,-226.38,0.00011232,2]
[421783229,1778151044000,-141.86279077,0.00011232,2]
[421783226,1778151044000,-200.58873073,0.00011232,2]
[421783227,1778151044000,-299.41126927,0.00011232,2]
[421783228,1778151044000,-358.13720923,0.00011232,2]
[421783220,1778151044000,-107.34974682,0.00011232,2]
[421783222,1778151044000,-315.84,0.00011232,2]
[421783221,1778151044000,-392.65025318,0.00011232,2]
[421783219,1778151044000,-292.65025318,0.00011232,2]
[421783239,1778151044000,-500.0,0.00011232,2]
[421783231,1778151044000,-177.26,0.00011232,2]
[421783244,1778151044000,-500.0,0.00011232,2]
[421783225,1778151044000,-556.9,0.00011232,2]
[421783243,1778151044000,-220.63,0.00011232,2]
[421783263,1778151044000,-39.50423006,0.00011232,2]
[421783260,1778151044000,-500.0,0.00011232,2]
[421783261,1778151044000,-152.34,0.00011232,2]
[421783256,1778151044000,-215.59,0.00011232,2]
[421783257,1778151044000,-500.0,0.00011232,2]
[421783255,1778151044000,-940.81,0.00011232,2]
[421783262,1778151044000,-500.0,0.00011232,2]
[421783258,1778151044000,-500.0,0.00011232,2]
[421783251,1778151044000,-500.0,0.00011232,2]
[421783253,1778151044000,-219.94,0.00011232,2]
[421783241,1778151044000,-1477.09401364,0.00011232,2]
[421783259,1778151044000,-500.0,0.00011232,2]
[421783249,1778151044000,-500.0,0.00011232,2]
[421783242,1778151044000,-7906.22598636,0.00011232,2]
[421783246,1778151044000,-2263.79919547,0.00011232,2]
[421783236,1778151044000,-1729.69,0.00011232,2]
[421783245,1778151044000,-2073.82080453,0.00011232,2]
[421783248,1778151044000,-500.0,0.00011232,2]
[421783250,1778151044000,-353.75,0.00011232,2]
[421783252,1778151044000,-951.43,0.00011232,2]
[421783247,1778151044000,-604.89,0.00011232,2]
[421783268,1778151047000,-500.0,0.00010958,2]
[421783270,1778151047000,-500.0,0.00011232,2]
[421783272,1778151047000,-500.0,0.00011232,2]
[421783271,1778151047000,-500.0,0.00011232,2]
[421783269,1778151047000,-460.49576994,0.00011232,2]
[421783279,1778151047000,-720.0,0.00011398,2]
[421783278,1778151047000,-947.0,0.00011388,2]
[421783275,1778151047000,-1411.0,0.00011329,2]
[421783274,1778151047000,-2215.0,0.00011329,2]
[421783280,1778151047000,-793.0,0.000114,2]
[421783273,1778151047000,-500.0,0.00011232,2]
[421783285,1778151047000,-67085.06525251,0.00011451,2]
[421783286,1778151047000,-7199.29956112,0.00011451,2]
[421783283,1778151047000,-724.61929876,0.00011437,60]
[421783282,1778151047000,-310.55112804,0.00011437,14]
[421783281,1778151047000,-315.52653332,0.00011406,2]
[421783284,1778151047000,-823.0,0.00011445,2]
[421783277,1778151047000,-1009.75376014,0.00011334,30]
[421783276,1778151047000,-647.0,0.00011329,2]
[421783288,1778151122000,70047.55650834,6.7e-05,2]
[421783289,1778151298000,167.273053,4.671e-05,2]
[421783290,1778151412000,5000.0,0.00019,120]
[421783291,1778151428000,2000.0,0.00019,120]
[421783296,1778151470000,-10900.11,9.278e-05,2]
[421783294,1778151470000,-5000.0,9.184e-05,2]
[421783293,1778151470000,-4700.0,9.092e-05,2]
[421783292,1778151470000,-300.0,9.092e-05,2]
[421783295,1778151470000,-300.0,9.277e-05,2]
[421783297,1778151510000,192.8371093,0.00019178,120]
[421783298,1778151635000,-693.78496586,9.093e-05,2]
[421783300,1778151652000,-176.747651,8.404e-05,2]
[421783301,1778151669000,-395.95240021,9.139e-05,2]
[421783302,1778151685000,-300.0,9.277e-05,2]
[421783304,1778151702000,-300.0,9.277e-05,2]
[421783305,1778151719000,-1200.0,9.277e-05,2]
[421783306,1778151736000,-300.0,9.277e-05,2]
[421783308,1778151753000,-1732.79388972,9.278e-05,2]
[421783315,1778151924000,52097.06892982,7.6e-05,2]
[421783391,1778152232000,-384.768375,8.253e-05,2]
[421783392,1778152237000,5000.0,8.16e-05,2]
[421783418,1778152239000,-300.0,9.462e-05,2]
[421783419,1778152239000,-600.0,9.462e-05,2]
[421783417,1778152239000,-300.0,9.462e-05,2]
[421783420,1778152239000,-2673.76082129,0.0001,2]
[421783421,1778152239000,-420.0,0.00010119,2]
[421783423,1778152239000,-457.8793556,0.00010657,2]
[421783422,1778152239000,-720.0,0.00010408,2]
[421783424,1778152239000,-151.5,0.00010684,2]
[421783425,1778152239000,-163.97579235,0.00010684,2]
[421783429,1778152239000,-445.202766,0.00010951,2]
[421783430,1778152239000,-537.6845,0.00010951,2]
[421783416,1778152239000,-300.0,9.462e-05,2]
[421783426,1778152239000,-2228.41620101,0.00010858,2]
[421783428,1778152239000,-162.380719,0.00010951,2]
[421783432,1778152239000,-500.0,0.00010956,2]
[421783431,1778152239000,-157.37628278,0.00010951,2]
[421783433,1778152239000,-500.0,0.00010956,2]
[421783436,1778152239000,-500.0,0.00010956,2]
[421783434,1778152239000,-326.26416366,0.00010956,2]